fUSD/lending_fUSD_20260407
["ID","MTS","AMOUNT","RATE_DAILY","PERIOD"]
[419981123,1775582065437,156.0,6.659e-05,2]
[419981124,1775582065597,156.0,6.659e-05,2]
[419981125,1775582065704,156.0,6.659e-05,2]
[419981126,1775582065950,156.0,6.659e-05,2]
[419981127,1775582066209,156.0,6.659e-05,2]
[419981130,1775582080915,-250.0,0.00011597,2]
[419981131,1775582080937,-193.0,0.00011623,2]
[419981132,1775582080960,-150.0,0.00011675,2]
[419981133,1775582080982,-366.72962348,0.00011696,2]
[419981134,1775582081003,-500.0,0.00011707,2]
[419981135,1775582081025,-12447.501,0.00011707,2]
[419981136,1775582081048,-150.0,0.00011806,2]
[419981137,1775582081070,-300.0,0.00011806,2]
[419981138,1775582081095,-180.56857721,0.00011806,2]
[419981139,1775582081118,-507.64833433,0.00011806,2]
[419981140,1775582081139,-184.13536234,0.00011806,2]
[419981141,1775582081161,-493.93571896,0.00011806,2]
[419981142,1775582081195,-500.0,0.00011806,2]
[419981143,1775582081223,-500.0,0.00011806,2]
[419981144,1775582081252,-500.0,0.00011806,2]
[419981145,1775582081281,-500.0,0.00011806,2]
[419981146,1775582081310,-500.0,0.00011806,2]
[419981147,1775582081339,-500.0,0.00011806,2]
[419981148,1775582081367,-500.0,0.00011806,2]
[419981149,1775582081395,-500.0,0.00011806,2]
[419981150,1775582081422,-500.0,0.00011806,2]
[419981151,1775582081451,-500.0,0.00011806,2]
[419981152,1775582081479,-500.0,0.00011806,2]
[419981153,1775582081507,-617.13195774,0.00011806,2]
[419981154,1775582081535,-500.0,0.00011806,2]
[419981155,1775582081566,-500.0,0.00011806,2]
[419981156,1775582081594,-500.0,0.00011806,2]
[419981157,1775582081622,-500.0,0.00011806,2]
[419981158,1775582081650,-500.0,0.00011806,2]
[419981159,1775582081677,-500.0,0.00011806,2]
[419981160,1775582081705,-200.0,0.00011806,2]
[419981161,1775582081733,-500.0,0.00011806,2]
[419981162,1775582081761,-384459.34942594,0.00011807,2]
[419981176,1775582098129,-9000000.0,0.00046805,30]
[419981177,1775582104863,-9000000.0,0.00046805,30]
[419981178,1775582110193,-9000000.0,0.00046805,30]
[419981179,1775582116128,-9000000.0,0.00046805,30]
[419981180,1775582120903,-151.0,0.00046769,120]
[419981181,1775582120928,-151.0,0.00046769,120]
[419981182,1775582120955,-151.0,0.00046769,120]
[419981183,1775582120981,-151.0,0.00046769,120]
[419981184,1775582121007,-151.0,0.00046769,120]
[419981185,1775582121051,-7027369.64520359,0.00046769,30]
[419981186,1775582121076,-1971875.35479641,0.00046769,30]
[419981187,1775582127171,-40465.61103951,0.00046769,30]
[419981188,1775582127197,-800.0,0.00046769,120]
[419981189,1775582127222,-3467631.09091346,0.00046769,30]
[419981190,1775582127247,-1200.6,0.00046769,30]
[419981191,1775582127273,-594214.16759107,0.00046769,30]
[419981192,1775582127298,-333467.65732515,0.00046769,30]
[419981193,1775582127323,-14555.71859651,0.00046769,30]
[419981194,1775582127349,-31430.25706571,0.00046769,60]
[419981195,1775582127378,-50000.0,0.00046769,66]
[419981196,1775582127406,-50000.0,0.00046769,68]
[419981197,1775582127432,-934.06926302,0.00046769,120]
[419981198,1775582127460,-50000.0,0.00046769,67]
[419981199,1775582127487,-50000.0,0.00046769,69]
[419981200,1775582127514,-50000.0,0.00046769,70]
[419981201,1775582127541,-50000.0,0.00046769,43]
[419981202,1775582127568,-50000.0,0.00046769,44]
[419981203,1775582127594,-50000.0,0.00046769,45]
[419981204,1775582127621,-50000.0,0.00046769,46]
[419981205,1775582127651,-50000.0,0.00046769,47]
[419981206,1775582127680,-50000.0,0.00046769,48]
[419981207,1775582127708,-50000.0,0.00046769,49]
[419981208,1775582127736,-50000.0,0.00046769,51]
[419981209,1775582127764,-50000.0,0.00046769,50]
[419981210,1775582127792,-50000.0,0.00046769,52]
[419981211,1775582127818,-500.0,0.00046769,120]
[419981212,1775582127845,-135000.0,0.00046769,120]
[419981213,1775582127871,-2000.0,0.00046769,120]
[419981214,1775582127897,-209223.31640134,0.00046769,120]
[419981215,1775582127925,-32315.82775166,0.00046769,120]
[419981216,1775582127951,-301598.74324915,0.00046769,120]
[419981217,1775582127978,-19975.524294,0.00046769,120]
[419981218,1775582128004,-248901.43976243,0.00046769,120]
[419981219,1775582128033,-25834.4360148,0.00046769,120]
[419981220,1775582128062,-10391.56705946,0.00046769,120]
[419981221,1775582128089,-20204.94841618,0.00046769,120]
[419981222,1775582128116,-3898.51230227,0.00046769,120]
[419981223,1775582128144,-7615.51832419,0.00046769,60]
[419981224,1775582128171,-10831.32950368,0.00046769,30]
[419981225,1775582128198,-598975.63,0.00046769,80]
[419981226,1775582128224,-60484.35,0.00046769,30]
[419981227,1775582128251,-85301.75796424,0.00046769,60]
[419981228,1775582128278,-10000.0,0.00046769,120]
[419981229,1775582128304,-5000.0,0.00046769,120]
[419981230,1775582128330,-35053.67472343,0.00046769,120]
[419981231,1775582128358,-100637.53756819,0.00046769,120]
[419981232,1775582128385,-3580.0,0.00046769,120]
[419981233,1775582128411,-3680.0,0.00046769,120]
[419981234,1775582128438,-3800.0,0.00046769,120]
[419981235,1775582128465,-3900.0,0.00046769,120]
[419981236,1775582128493,-980.0,0.00046769,120]
[419981237,1775582128520,-900.0,0.00046769,120]
[419981238,1775582128548,-850.0,0.00046769,120]
[419981239,1775582128574,-900.0,0.00046769,120]
[419981240,1775582128601,-800.0,0.00046769,120]
[419981241,1775582128628,-1000.0,0.00046769,120]
[419981242,1775582128655,-900.0,0.00046769,120]
[419981243,1775582128682,-43674.08971383,0.00046769,120]
[419981244,1775582128708,-2054.15006665,0.00046769,120]
[419981245,1775582128735,-10688.0,0.00046769,120]
[419981246,1775582128763,-10688.0,0.00046769,120]
[419981247,1775582128789,-10688.0,0.00046769,120]
[419981248,1775582128816,-988.79598958,0.00046769,30]
[419981249,1775582128842,-4500.0,0.00046769,120]
[419981250,1775582128870,-5000.0,0.00046769,120]
[419981251,1775582128899,-5000.0,0.00046769,120]
[419981252,1775582128927,-5000.0,0.00046769,120]
[419981253,1775582128955,-5000.0,0.00046769,120]
[419981254,1775582128981,-5000.0,0.00046769,120]
[419981255,1775582129008,-5000.0,0.00046769,120]
[419981256,1775582129035,-3656.4024183,0.00046769,120]
[419981257,1775582129062,-4000.0,0.00046769,31]
[419981258,1775582129089,-518721.83628923,0.00046769,30]
[419981259,1775582129116,-1180607.44039296,0.00046769,120]
[419981260,1775582146574,-1705134.18900333,0.00046769,120]
[419981261,1775582146599,-3488.2852532,0.00046769,120]
[419981262,1775582146628,-1000000.0,0.00046769,120]
[419981263,1775582146657,-1000000.0,0.00046769,120]
[419981264,1775582146685,-1000000.0,0.00046769,120]
[419981265,1775582146711,-1427.39974852,0.00046769,120]
[419981266,1775582146736,-851089.91773118,0.00046769,30]
[419981267,1775582146763,-10688.0,0.00046769,120]
[419981268,1775582146789,-10688.0,0.00046769,120]
[419981269,1775582146815,-10688.0,0.00046769,120]
[419981270,1775582146840,-10688.0,0.00046769,120]
[419981271,1775582146867,-10688.0,0.00046769,120]
[419981272,1775582146893,-10688.0,0.00046769,120]
[419981273,1775582146918,-10688.0,0.00046769,120]
[419981274,1775582146944,-10688.0,0.00046769,120]
[419981275,1775582146971,-10688.0,0.00046769,120]
[419981276,1775582146998,-10688.0,0.00046769,120]
[419981277,1775582147024,-10688.0,0.00046769,120]
[419981278,1775582147052,-10688.0,0.00046769,120]
[419981279,1775582147077,-10688.0,0.00046769,120]
[419981280,1775582147104,-10688.0,0.00046769,120]
[419981281,1775582147129,-10688.0,0.00046769,120]
[419981282,1775582147155,-10688.0,0.00046769,120]
[419981283,1775582147184,-50000.0,0.00046769,53]
[419981284,1775582147210,-607.0,0.00046769,120]
[419981285,1775582147236,-226.0,0.00046769,30]
[419981286,1775582147261,-196.0,0.00046769,30]
[419981287,1775582147287,-196.0,0.00046769,30]
[419981288,1775582147313,-1544.0,0.00046769,30]
[419981289,1775582147755,-1544.0,0.00046769,120]
[419981290,1775582147781,-304.0,0.00046769,30]
[419981291,1775582147811,-1303267.0,0.00046769,120]
[419981292,1775582147837,-243.45779442,0.00046769,30]
[419981293,1775582147864,-243.45779442,0.00046769,30]
[419981294,1775582147890,-2200.97327377,0.00046769,120]
[419981295,1775582147917,-2000.0,0.00046769,120]
[419981296,1775582147944,-500.0,0.00046769,30]
[419981297,1775582147970,-500.0,0.00046769,30]
[419981298,1775582147995,-500.0,0.00046769,30]
[419981299,1775582148022,-500.0,0.00046769,30]
[419981300,1775582148049,-534.0,0.00046769,30]
[419981301,1775582148077,-582.0,0.00046769,30]
[419981302,1775582148103,-176.52301469,0.00046769,30]
[419981303,1775582148130,-640.0,0.00046769,30]
[419981304,1775582148156,-711.0,0.00046769,30]
[419981305,1775582148183,-711.0,0.00046769,30]
[419981306,1775582148209,-800.0,0.00046769,30]
[419981307,1775582148235,-200.0,0.00046769,120]
[419981308,1775582148262,-200.0,0.00046769,120]
[419981309,1775582148287,-200.0,0.00046769,120]
[419981310,1775582148314,-200.0,0.00046769,120]
[419981311,1775582148343,-2811.0,0.00046769,30]
[419981312,1775582148369,-200.0,0.00046769,120]
[419981313,1775582148395,-200.0,0.00046769,120]
[419981314,1775582148421,-200.0,0.00046769,120]
[419981315,1775582148448,-200.0,0.00046769,120]
[419981316,1775582148475,-2811.0,0.00046769,120]
[419981317,1775582148502,-200.0,0.00046769,120]
[419981318,1775582148528,-200.0,0.00046769,120]
[419981319,1775582148556,-200.0,0.00046769,120]
[419981320,1775582148581,-200.0,0.00046769,120]
[419981321,1775582148606,-200.0,0.00046769,120]
[419981322,1775582148632,-200.0,0.00046769,120]
[419981323,1775582148659,-282.59059969,0.00046769,120]
[419981324,1775582148685,-1000.0,0.00046769,120]
[419981325,1775582148710,-1510.73887592,0.00046769,120]
[419981326,1775582148737,-2100.0,0.00046769,120]
[419981327,1775582148763,-4429.85344121,0.00046769,90]
[419981328,1775582148788,-682.61264841,0.00046769,120]
[419981329,1775582148813,-1658.46378298,0.00046769,120]
[419981330,1775582148840,-883.65312641,0.00046769,30]
[419981331,1775582148870,-552.21179911,0.00046769,30]
[419981332,1775582148897,-412.87029245,0.00046769,30]
[419981333,1775582148923,-2326.74319364,0.00046769,120]
[419981334,1775582148950,-2480.06866849,0.00046769,91]
[419981335,1775582148976,-718.55500369,0.00046769,60]
[419981336,1775582149002,-1557.8683783,0.00046769,30]
[419981337,1775582149031,-1000.0,0.00046769,30]
[419981338,1775582149057,-953.56988243,0.00046769,30]
[419981339,1775582149084,-1221.94399506,0.00046769,30]
[419981340,1775582149110,-1554.85036091,0.00046769,120]
[419981341,1775582149136,-2207.8774226,0.00046769,30]
[419981342,1775582149162,-2959.90476844,0.00046769,120]
[419981343,1775582149189,-804.50664748,0.00046769,30]
[419981344,1775582149215,-2902.78832673,0.00046769,120]
[419981345,1775582149240,-150.98792055,0.00046769,120]
[419981346,1775582149265,-612.89186613,0.00046769,120]
[419981347,1775582149291,-2921.78673281,0.00046769,30]
[419981348,1775582149317,-1000.0,0.00046769,60]
[419981349,1775582149343,-1415.96102179,0.00046769,30]
[419981350,1775582149370,-2000.0,0.00046769,120]
[419981351,1775582149396,-2000.0,0.00046769,120]
[419981352,1775582149422,-1925.53998065,0.00046769,30]
[419981353,1775582149447,-2000.0,0.00046769,120]
[419981354,1775582149472,-1400.899998,0.00046769,120]
[419981355,1775582149497,-1000.0,0.00046769,60]
[419981356,1775582149523,-518.01591639,0.00046769,120]
[419981357,1775582149547,-1958.3896291,0.00046769,120]
[419981358,1775582149574,-2000.0,0.00046769,120]
[419981359,1775582149598,-914.10743837,0.00046769,30]
[419981360,1775582149624,-1032.17008648,0.00046769,120]
[419981361,1775582149650,-2000.0,0.00046769,120]
[419981362,1775582149676,-1120.99412936,0.00046769,120]
[419981363,1775582149703,-1177.70782726,0.00046769,120]
[419981364,1775582149731,-500.0,0.00046769,120]
[419981365,1775582149757,-2000.0,0.00046769,120]
[419981366,1775582149783,-933.80509833,0.00046769,30]
[419981367,1775582149810,-226.4,0.00046769,120]
[419981368,1775582149837,-216.02519078,0.00046769,120]
[419981369,1775582149863,-6388.83635052,0.00046769,30]
[419981370,1775582149890,-1000.0,0.00046769,60]
[419981371,1775582149915,-2909.85977219,0.00046769,60]
[419981372,1775582149942,-2000.0,0.00046769,120]
[419981373,1775582149968,-942.93143649,0.00046769,30]
[419981374,1775582149993,-227.10684271,0.00046769,120]
[419981375,1775582150020,-1642.22817359,0.00046769,30]
[419981376,1775582150046,-219.69950911,0.00046769,90]
[419981377,1775582150073,-2000.0,0.00046769,120]
[419981378,1775582150098,-308.08716516,0.00046769,120]
[419981379,1775582150124,-315.26424305,0.00046769,120]
[419981380,1775582150151,-2000.0,0.00046769,120]
[419981381,1775582150177,-1015.12550482,0.00046769,30]
[419981382,1775582150204,-1156.69326917,0.00046769,120]
[419981383,1775582150231,-1000.0,0.00046769,60]
[419981384,1775582150256,-698.47583785,0.00046769,60]
[419981385,1775582150283,-1652.25799311,0.00046769,120]
[419981386,1775582150311,-2000.0,0.00046769,120]
[419981387,1775582150338,-479.92051035,0.00046769,120]
[419981388,1775582150365,-537.72562426,0.00046769,120]
[419981389,1775582150391,-224.91686478,0.00046769,30]
[419981390,1775582150418,-2038.22813784,0.00046769,60]
[419981391,1775582150445,-2000.0,0.00046769,120]
[419981392,1775582150471,-1049.00328628,0.00046769,30]
[419981393,1775582150499,-3067.26170689,0.00046769,120]
[419981394,1775582150525,-196.01691181,0.00046769,120]
[419981395,1775582150552,-2887.62127052,0.00046769,120]
[419981396,1775582150578,-275.51936104,0.00046769,60]
[419981397,1775582150604,-2556.08217812,0.00046769,120]
[419981398,1775582150631,-2000.0,0.00046769,120]
[419981399,1775582150657,-266.73104073,0.00046769,120]
[419981400,1775582150684,-1000.0,0.00046769,30]
[419981401,1775582150713,-2028.60626206,0.00046769,30]
[419981402,1775582150740,-1891.08165756,0.00046769,120]
[419981403,1775582150767,-2000.0,0.00046769,120]
[419981404,1775582150793,-380.57308168,0.00046769,30]
[419981405,1775582150821,-2000.0,0.00046769,120]
[419981406,1775582151153,-1000.0,0.00046769,30]
[419981407,1775582151180,-2000.0,0.00046769,120]
[419981408,1775582151207,-2721.33043636,0.00046769,120]
[419981409,1775582151235,-509.39656322,0.00046769,120]
[419981410,1775582151262,-2000.0,0.00046769,120]
[419981411,1775582151288,-785.94776622,0.00046769,120]
[419981412,1775582151315,-979.72608798,0.00046769,30]
[419981413,1775582151341,-2000.0,0.00046769,120]
[419981414,1775582151367,-2000.0,0.00046769,120]
[419981415,1775582151394,-1000.0,0.00046769,30]
[419981416,1775582151421,-447.69609207,0.00046769,120]
[419981417,1775582151449,-2000.0,0.00046769,120]
[419981418,1775582151474,-1691.38183119,0.00046769,120]
[419981419,1775582151499,-927.46581218,0.00046769,120]
[419981420,1775582151525,-2000.0,0.00046769,120]
[419981421,1775582151550,-1289.13403733,0.00046769,120]
[419981422,1775582151576,-720.21971679,0.00046769,120]
[419981423,1775582151603,-2000.0,0.00046769,120]
[419981424,1775582151631,-5000.0,0.00046769,120]
[419981425,1775582151660,-595.69441565,0.00046769,120]
[419981426,1775582151687,-1000.0,0.00046769,60]
[419981427,1775582151714,-1547.16993543,0.00046769,30]
[419981428,1775582151740,-2000.0,0.00046769,120]
[419981429,1775582151767,-2000.0,0.00046769,120]
[419981430,1775582151794,-1288.82975099,0.00046769,120]
[419981431,1775582151823,-2000.0,0.00046769,120]
[419981432,1775582151850,-1000.0,0.00046769,60]
[419981433,1775582151877,-2000.0,0.00046769,120]
[419981434,1775582151904,-2000.0,0.00046769,120]
[419981435,1775582151931,-2000.0,0.00046769,120]
[419981436,1775582151957,-1104.20204886,0.00046769,30]
[419981437,1775582151983,-1000.0,0.00046769,60]
[419981438,1775582152008,-2000.0,0.00046769,120]
[419981439,1775582152034,-1405.79088628,0.00046769,120]
[419981440,1775582152061,-2395.90083947,0.00046769,120]
[419981441,1775582152088,-268.80973529,0.00046769,120]
[419981442,1775582152114,-1431.31145035,0.00046769,120]
[419981443,1775582152142,-2000.0,0.00046769,120]
[419981444,1775582152170,-1944.5010537,0.00046769,30]
[419981445,1775582152197,-1216.57684423,0.00046769,120]
[419981446,1775582152223,-245.91430101,0.00046769,30]
[419981447,1775582152251,-2000.0,0.00046769,120]
[419981448,1775582152278,-3501.94046117,0.00046769,30]
[419981449,1775582152306,-1742.92324685,0.00046769,120]
[419981450,1775582152333,-1000.0,0.00046769,60]
[419981451,1775582152359,-2000.0,0.00046769,120]
[419981452,1775582152386,-246.27050521,0.00046769,120]
[419981453,1775582152412,-2476.05550104,0.00046769,120]
[419981454,1775582152439,-260.09216815,0.00046769,120]
[419981455,1775582152464,-450.53031696,0.00046769,120]
[419981456,1775582152491,-589.02083471,0.00046769,30]
[419981457,1775582152517,-2000.0,0.00046769,120]
[419981458,1775582152543,-291.35250771,0.00046769,120]
[419981459,1775582152569,-2077.09877461,0.00046769,120]
[419981460,1775582152594,-997.0,0.00046769,30]
[419981461,1775582152621,-2408.65907871,0.00046769,120]
[419981462,1775582152647,-9043.17507614,0.00046769,60]
[419981463,1775582152673,-3189.27772409,0.00046769,120]
[419981464,1775582152699,-2000.0,0.00046769,120]
[419981465,1775582152726,-269.34442095,0.00046769,120]
[419981466,1775582152753,-257.29304785,0.00046769,30]
[419981467,1775582152779,-1000.0,0.00046769,30]
[419981468,1775582152806,-2000.0,0.00046769,120]
[419981469,1775582152832,-259.90178004,0.00046769,120]
[419981470,1775582152858,-1040.12851455,0.00046769,30]
[419981471,1775582152884,-3058.13173491,0.00046769,120]
[419981472,1775582152911,-2000.0,0.00046769,120]
[419981473,1775582152938,-421.38115594,0.00046769,120]
[419981474,1775582152965,-482.81157957,0.00046769,120]
[419981475,1775582152992,-388.19970193,0.00046769,30]
[419981476,1775582153019,-1412.50191782,0.00046769,120]
[419981477,1775582153047,-2000.0,0.00046769,120]
[419981478,1775582153074,-1185.70679754,0.00046769,30]
[419981479,1775582153102,-964.75177798,0.00046769,30]
[419981480,1775582153129,-1715.28310598,0.00046769,30]
[419981481,1775582153159,-1000.0,0.00046769,30]
[419981482,1775582153185,-2000.0,0.00046769,120]
[419981483,1775582153212,-3005.56940117,0.00046769,120]
[419981484,1775582153239,-1000.0,0.00046769,31]
[419981485,1775582153266,-2000.0,0.00046769,120]
[419981486,1775582153293,-2501.37002386,0.00046769,120]
[419981487,1775582153321,-1000.0,0.00046769,30]
[419981488,1775582153349,-2063.97838209,0.00046769,120]
[419981489,1775582153377,-1114.77484297,0.00046769,120]
[419981490,1775582153404,-2311.1838938,0.00046769,120]
[419981491,1775582153432,-616.1892368,0.00046769,120]
[419981492,1775582153459,-1867.03925848,0.00046769,60]
[419981493,1775582153485,-272.10677004,0.00046769,120]
[419981494,1775582153512,-1337.79747905,0.00046769,120]
[419981495,1775582153539,-1431.60666877,0.00046769,120]
[419981496,1775582153566,-2268.13103747,0.00046769,120]
[419981497,1775582153594,-259.43855231,0.00046769,120]
[419981498,1775582153622,-185.5614785,0.00046769,120]
[419981499,1775582153649,-3012.37045033,0.00046769,120]
[419981500,1775582153676,-654.7390725,0.00046769,120]
[419981501,1775582153703,-1215.32199217,0.00046769,30]
[419981502,1775582153731,-2328.31897449,0.00046769,120]
[419981503,1775582153758,-2980.80015305,0.00046769,30]
[419981504,1775582153785,-2817.17092025,0.00046769,120]
[419981505,1775582153812,-288.64537837,0.00046769,30]
[419981506,1775582153838,-3127.23802554,0.00046769,120]
[419981507,1775582153864,-790.28363437,0.00046769,30]
[419981508,1775582153890,-1019.05488406,0.00046769,30]
[419981509,1775582153918,-1958.48422945,0.00046769,120]
[419981510,1775582153945,-1684.78685889,0.00046769,120]
[419981511,1775582153972,-1948.14432061,0.00046769,30]
[419981512,1775582153999,-3366.4365665,0.00046769,30]
[419981513,1775582154026,-926.97532613,0.00046769,120]
[419981514,1775582154053,-4280.44088264,0.00046769,120]
[419981515,1775582154080,-285.9535503,0.00046769,120]
[419981516,1775582154107,-1327.81851279,0.00046769,120]
[419981517,1775582154134,-706.1653381,0.00046769,120]
[419981518,1775582154162,-1307.01294439,0.00046769,120]
[419981519,1775582154189,-1728.46910267,0.00046769,30]
[419981520,1775582154216,-1446.56043842,0.00046769,120]
[419981521,1775582154243,-1397.9831123,0.00046769,120]
[419981522,1775582154269,-756.0,0.00046769,120]
[419981523,1775582154543,-2071.51452235,0.00046769,120]
[419981524,1775582154607,-1943.42583762,0.00046769,120]
[419981525,1775582154635,-2107.84430742,0.00046769,120]
[419981526,1775582154663,-493.13416,0.00046769,60]
[419981527,1775582154691,-188.60567,0.00046769,60]
[419981528,1775582154718,-493.13416,0.00046769,60]
[419981529,1775582154745,-188.60567,0.00046769,60]
[419981530,1775582154771,-493.13416,0.00046769,60]
[419981531,1775582154798,-493.13416,0.00046769,60]
[419981532,1775582154825,-188.60567,0.00046769,60]
[419981533,1775582154851,-1092.03220151,0.00046769,120]
[419981534,1775582154878,-493.13416,0.00046769,60]
[419981535,1775582154904,-188.60567,0.00046769,60]
[419981536,1775582154932,-1000.0,0.00046769,30]
[419981537,1775582154959,-526.56878225,0.00046769,120]
[419981538,1775582154986,-2000.0,0.00046769,120]
[419981539,1775582155013,-188.60567,0.00046769,60]
[419981540,1775582155040,-183.85040296,0.00046769,120]
[419981541,1775582155067,-853.29978873,0.00046769,120]
[419981542,1775582155095,-1458.16360717,0.00046769,120]
[419981543,1775582155122,-563.39675091,0.00046769,120]
[419981544,1775582155150,-1782.40725817,0.00046769,30]
[419981545,1775582155178,-628.76216751,0.00046769,120]
[419981546,1775582155208,-635.00490308,0.00046769,120]
[419981547,1775582155237,-1364.61756572,0.00046769,120]
[419981548,1775582155265,-1199.14084076,0.00046769,30]
[419981549,1775582155292,-2000.0,0.00046769,120]
[419981550,1775582155320,-1352.68324549,0.00046769,49]
[419981551,1775582155348,-1132.50790079,0.00046769,30]
[419981552,1775582155375,-401.71536291,0.00046769,120]
[419981553,1775582155403,-2410.09387534,0.00046769,30]
[419981554,1775582155431,-200.27769345,0.00046769,120]
[419981555,1775582155459,-1262.31163191,0.00046769,120]
[419981556,1775582155488,-1023.46376921,0.00046769,120]
[419981557,1775582155515,-2120.1818463,0.00046769,120]
[419981558,1775582155543,-945.49469893,0.00046769,120]
[419981559,1775582155569,-835.16262463,0.00046769,30]
[419981560,1775582155595,-2149.26450137,0.00046769,30]
[419981561,1775582155621,-2784.44406606,0.00046769,120]
[419981562,1775582155649,-185.15963965,0.00046769,120]
[419981563,1775582155677,-1288.12615556,0.00046769,30]
[419981564,1775582155705,-1256.39742732,0.00046769,30]
[419981565,1775582155733,-2000.0,0.00046769,120]
[419981566,1775582155760,-2179.70353203,0.00046769,30]
[419981567,1775582155786,-279.43103621,0.00046769,120]
[419981568,1775582155813,-3563.47668644,0.00046769,30]
[419981569,1775582155839,-490.50507173,0.00046769,120]
[419981570,1775582155866,-1502.11234423,0.00046769,120]
[419981571,1775582155892,-2744.36296465,0.00046769,120]
[419981572,1775582155919,-1239.39883547,0.00046769,120]
[419981573,1775582155947,-1227.4767547,0.00046769,120]
[419981574,1775582155975,-1504.00934416,0.00046769,30]
[419981575,1775582156002,-1756.84424,0.00046769,120]
[419981576,1775582156029,-486.44762736,0.00046769,120]
[419981577,1775582156056,-4577.57024607,0.00046769,30]
[419981578,1775582156084,-3400.60054034,0.00046769,120]
[419981579,1775582156110,-500.0,0.00046769,120]
[419981580,1775582156137,-974.98005691,0.00046769,30]
[419981581,1775582156163,-502.88533027,0.00046769,30]
[419981582,1775582156190,-2004.64565311,0.00046769,120]
[419981583,1775582156220,-1631.87079563,0.00046769,120]
[419981584,1775582156247,-174.44462761,0.00046769,30]
[419981585,1775582156275,-1499.28921119,0.00046769,120]
[419981586,1775582156302,-1499.88497621,0.00046769,120]
[419981587,1775582156329,-2000.0,0.00046769,120]
[419981588,1775582156356,-3506.67507903,0.00046769,120]
[419981589,1775582156382,-3384.61053665,0.00046769,30]
[419981590,1775582156409,-1000.0,0.00046769,60]
[419981591,1775582156437,-3672.06204784,0.00046769,120]
[419981592,1775582156464,-858.06574863,0.00046769,30]
[419981593,1775582156492,-356.08098241,0.00046769,120]
[419981594,1775582156520,-2083.98295895,0.00046769,120]
[419981595,1775582156548,-2093.90707478,0.00046769,46]
[419981596,1775582156575,-1069.12587176,0.00046769,120]
[419981597,1775582156601,-3445.97183616,0.00046769,30]
[419981598,1775582156630,-1305.34967548,0.00046769,120]
[419981599,1775582156656,-761.53141385,0.00046769,120]
[419981600,1775582156684,-1743.69728693,0.00046769,30]
[419981601,1775582156711,-1856.05333446,0.00046769,120]
[419981602,1775582156738,-272.11239874,0.00046769,120]
[419981603,1775582156764,-1785.43080169,0.00046769,120]
[419981604,1775582156791,-202.80454389,0.00046769,120]
[419981605,1775582156818,-490.19652291,0.00046769,120]
[419981606,1775582156846,-237.3873694,0.00046769,120]
[419981607,1775582156872,-158.51901406,0.00046769,120]
[419981608,1775582156901,-1931.12549547,0.00046769,120]
[419981609,1775582156929,-2328.56268867,0.00046769,30]
[419981610,1775582156957,-2132.51122288,0.00046769,120]
[419981611,1775582156984,-557.88815624,0.00046769,60]
[419981612,1775582157012,-585.45088289,0.00046769,60]
[419981613,1775582157041,-2106.15647295,0.00046769,120]
[419981614,1775582157070,-3262.17466049,0.00046769,30]
[419981615,1775582157098,-1196.46788521,0.00046769,120]
[419981616,1775582157125,-1561.45593201,0.00046769,60]
[419981617,1775582157152,-5223.44634651,0.00046769,90]
[419981618,1775582157180,-512.16477098,0.00046769,90]
[419981619,1775582157209,-614.38512128,0.00046769,120]
[419981620,1775582157237,-903.14178317,0.00046769,30]
[419981621,1775582157264,-205.69796012,0.00046769,120]
[419981622,1775582157291,-1390.30435547,0.00046769,120]
[419981623,1775582157317,-2747.92240001,0.00046769,30]
[419981624,1775582157346,-1668.19503898,0.00046769,30]
[419981625,1775582157375,-1814.06327548,0.00046769,120]
[419981626,1775582157403,-500.59104777,0.00046769,120]
[419981627,1775582157430,-175.28000805,0.00046769,30]
[419981628,1775582157457,-549.0,0.00046769,30]
[419981629,1775582157484,-1003.78659518,0.00046769,120]
[419981630,1775582157511,-1003.77226721,0.00046769,120]
[419981631,1775582157538,-1000.0,0.00046769,30]
[419981632,1775582157565,-1000.0,0.00046769,120]
[419981633,1775582157592,-1000.0,0.00046769,120]
[419981634,1775582157619,-1000.0,0.00046769,120]
[419981635,1775582157646,-1000.0,0.00046769,120]
[419981636,1775582157673,-1000.0,0.00046769,120]
[419981637,1775582157700,-1000.0,0.00046769,120]